Cogmind - Beta 13 @@@ ROGUE MODE // 2024.04.13 @ 16:11:50 Player: satan5 Result: Self-destructed Performance ------------- Evolutions (2) 1000 Regions Visited (4) 800 Robots Destroyed (23) 115 Value Destroyed (583) 583 Prototype IDs (5) 100 Alien Tech Used (0) 0 Bonus (0) 0 TOTAL SCORE: 2598 Bonus ------- None Cogmind --------- Core Integrity 470/550 Matter 235/300 Energy 82/100 System Corruption 0% Temperature Cool (0) Movement Walking (260) Ox2 Location -8/Materials Parts ------- > --- POWER (1) -------- (None) > --- PROPULSION (4) --- Aluminum Leg Aluminum Leg > --- UTILITY (4) ------ Cooling System High-capacity Storage Unit > --- WEAPON (2) ------- Advanced Beam Rifle > --- INVENTORY (20) --- Light Nuclear Core Improved Heat Sink Improved Terrain Scanner Medium Laser Improved Medium Laser Improved Medium Laser Pulse Rifle Autogun Autogun Autogun Heavy Hammer Peak State ------------ > --- POWER ------------ Light Ion Engine > --- PROPULSION ------- Aluminum Leg Aluminum Leg Aluminum Leg Aluminum Leg > --- UTILITY ---------- Cooling System Medium Storage Unit High-capacity Storage Unit > --- WEAPON ----------- Advanced Beam Rifle Autogun > --- INVENTORY -------- Light Nuclear Core Improved Heat Sink Improved Terrain Scanner Medium Laser Improved Medium Laser Improved Medium Laser Autogun Grenade Launcher Heavy Hammer [Rating: 17] Favorites ----------- Power Light Ion Engine Engine Light Ion Engine Propulsion Aluminum Leg Treads Light Treads Leg Aluminum Leg Utility Cooling System Device Cooling System Storage Medium Storage Unit Weapon Autogun Energy Gun Medium Laser Ballistic Gun Autogun Launcher EMP Blaster Build | -11 -10 -9 -9 -8 ------- Run | Yrd Mat Mat Min Mat Slots Evolved 4 | . . 2 . 2 Power . | . . . . . Propulsion 2 | . . 2 . . Utility 2 | . . . . 2 Weapon . | . . . . . Parts Attached 31 | 6 2 8 11 4 Power 4 | 1 . 1 2 . Engine 4 | 1 . 1 2 . Core . | . . . . . Reactor . | . . . . . Propulsion 8 | 2 . 2 4 . Treads 2 | . . 2 . . Leg 6 | 2 . . 4 . Wheel . | . . . . . Hover . | . . . . . Flight . | . . . . . Utility 6 | 1 2 1 1 1 Device 3 | . 2 . 1 . Storage 3 | 1 . 1 . 1 Processor . | . . . . . Hackware . | . . . . . Protection . | . . . . . Artifact . | . . . . . Weapon 13 | 2 . 4 4 3 Energy Gun 4 | 1 . 2 . 1 Energy Cannon . | . . . . . Ballistic Gun 5 | 1 . 1 2 1 Ballistic Cannon . | . . . . . Launcher 4 | . . 1 2 1 Special Weapon . | . . . . . Impact Weapon . | . . . . . Slashing Weapon . | . . . . . Piercing Weapon . | . . . . . Special Melee Weapon . | . . . . . Unidentified Prototypes 1 | . . . . 1 Parts Lost 11 | . . 1 6 4 Power 4 | . . 1 2 1 Propulsion 4 | . . . 2 2 Utility 1 | . . . 1 . Weapon 2 | . . . 1 1 Highest Loss Streak 5 | . . 1 5 4 To Critical Strikes . | . . . . . Average Slot Usage (%) 87 | . 94 81 89 81 Engine 11 | . 14 11 10 9 Treads 10 | . . 4 19 . Leg 23 | . 28 22 19 35 Device 8 | . 9 11 6 9 Storage 11 | . 14 11 11 9 Energy Gun 6 | . 14 9 3 6 Ballistic Gun 14 | . 14 10 18 10 Naked Turns . | . . . . . Heaviest Build 50 | 12 14 23 24 50 Greatest Support 40 | 20 20 40 40 40 Greatest Overweight (x) 1 | . . 1 1 1 Average Overweight (x) . | . . . . . Largest Inventory Capacity 20 | 8 8 10 10 20 Average Capacity 10 | 6 8 8 10 16 Most Carried 11 | 5 8 10 10 11 Average Carried 7 | 2 4 8 8 10 Final Capacity 20 | 8 8 10 10 20 Final Carried 11 | 1 8 10 9 11 Class Distribution -------------------- 66% | Mutant 33% | Scavenger-Mutant Dominant Class ---------------- Mutant | -10/Materials Mutant | -9/Materials Scavenger-Mutant | -9/Mines Mutant | -8/Materials Resources | -11 -10 -9 -9 -8 ----------- Run | Yrd Mat Mat Min Mat Matter Collected 784 | 187 78 180 304 35 Remotely . | . . . . . Salvage Created 885 | . 78 256 366 185 Parts 52 | . 4 21 20 7 Haulers Intercepted 2 | . . 2 . . Recyclers Shooed 4 | . . 2 . 2 Parts Field Recycled . | . . . . . Retrieved Matter . | . . . . . Parts Self-Destructed . | . . . . . Prevented . | . . . . . Kills | -11 -10 -9 -9 -8 ------- Run | Yrd Mat Mat Min Mat Combat Hostiles Destroyed 21 | . 2 5 12 2 Guns 12 | . 2 3 6 1 AOE 9 | . . 2 6 1 Classes Destroyed 10 | . 1 4 3 2 Worker 1 | . . . 1 . Tunneler 1 | . . . 1 . Hauler 2 | . . 2 . . Recycler 1 | . . . . 1 Watcher 4 | . . 2 . 2 Swarmer 4 | . . 4 . . Grunt 8 | . 2 . 5 1 Duelist 1 | . . . . 1 Sentry 1 | . . 1 . . Assembled 7 | . . . 7 . Best Kill Streak 8 | . 2 4 8 4 Combat Bots Only 7 | . 2 4 7 2 Max Kills in Single Turn 4 | . 1 2 4 1 Gunslinging . | . . . . . Exploded 4 | . . 2 4 1 Melee . | . . . . . Uniques/NPCs Destroyed . | . . . . . Combat | -11 -10 -9 -9 -8 -------- Run | Yrd Mat Mat Min Mat Hostile Shots Fired 114 | . 9 17 45 43 Missed 30 | . 4 5 8 13 Damage Taken 1454 | . 55 152 713 534 Core 203 | . 10 . 113 80 Absorbed by Shields . | . . . . . Core Remaining (%) 89 | 100 96 . 71 . Volleys Fired 66 | . 5 23 26 12 Largest 2 | . 2 2 2 2 Hottest 91 | . 70 79 56 91 Shots Fired 119 | . 10 34 52 23 Gun 103 | . 10 30 46 17 Cannon . | . . . . . Launcher 16 | . . 4 6 6 Special . | . . . . . Kinetic 75 | . 5 19 46 5 Thermal 28 | . 5 11 . 12 Explosive 6 | . . . . 6 Electromagnetic 10 | . . 4 6 . Robot Hit Streak 11 | . 5 4 11 7 Robot Miss Streak 3 | . 2 3 3 2 Penetration Max . | . . . . . Secondary Targets 4 | . . . 3 1 Max Gunslinging Chain 1 | . . . 1 1 Shots Hit Robots 69 | . 7 14 34 14 Core Hits 59 | . 4 10 28 17 Critical Kills . | . . . . . Critical Parts Destroyed . | . . . . . Critical Strikes 2 | . 1 . . 1 Burn 2 | . 1 . . 1 Melee Attacks . | . . . . . Impact . | . . . . . Slashing . | . . . . . Piercing . | . . . . . Sneak Attacks . | . . . . . Combat Hostiles . | . . . . . Follow-up Attacks . | . . . . . Damage Inflicted 1933 | . 84 273 900 676 Guns 1035 | . 84 211 519 221 Cannons . | . . . . . Explosions 898 | . . 62 381 455 Melee . | . . . . . Ramming . | . . . . . Kinetic 716 | . 46 110 519 41 Thermal 412 | . 38 101 93 180 Explosive 416 | . . . . 416 Electromagnetic 389 | . . 62 288 39 Impact . | . . . . . Slashing . | . . . . . Piercing . | . . . . . Highest Corruption 1 | . . . 1 . Average Corruption 1 | . . . 1 . Corruption Purged . | . . . . . Corruption Blocked . | . . . . . Effects 2 | . . . 2 . Matter Fused 1 | . . . 1 . Heat Flow Errors 1 | . . . 1 . Overload Shots . | . . . . . Overflow Damage 19 | . . . 17 2 Projectiles . | . . . . . Explosions 19 | . . . 17 2 Melee . | . . . . . Knockbacks . | . . . . . Impact . | . . . . . Kinetic . | . . . . . Secondary . | . . . . . Self-Inflicted Damage 172 | . . 22 110 40 Shots 10 | . . 2 6 2 Rammed . | . . . . . Targets Rammed . | . . . . . Kicked . | . . . . . Crushed . | . . . . . Highest Temperature 253 | . 69 41 253 13 Average Temperature 38 | . 37 14 50 9 Received Heat Transfer 532 | . 30 18 250 234 Siege Activations . | . . . . . Robots Corrupted . | . . . . . Combat Hostiles . | . . . . . Parts Fried . | . . . . . Impact Corruptions . | . . . . . Robots Melted . | . . . . . Combat Hostiles . | . . . . . Parts Melted 2 | . . . . 2 Heat Transferred 1051 | . 185 259 200 407 Parts Sabotaged . | . . . . . Parts Stolen . | . . . . . Parts Stripped . | . . . . . Power Chain Reactions 3 | . . . 3 . Alert | -11 -10 -9 -9 -8 ------- Run | Yrd Mat Mat Min Mat Peak Influence 241 | . 65 241 149 96 Initial 93 | . . 27 93 23 Average 81 | . 41 135 81 18 Maximum Alert Level 1 | . . 1 . . Low Security (%) 96 | 100 100 87 100 100 Level 1 3 | . . 12 . . Level 2 . | . . . . . Level 3 . | . . . . . Level 4 . | . . . . . Level 5 . | . . . . . High Security . | . . . . . Max Security . | . . . . . Squads Dispatched 3 | . 1 . . 2 Investigation 2 | . 1 . . 1 Extermination . | . . . . . Reinforcement 1 | . . . . 1 Assault . | . . . . . Garrison . | . . . . . Intercept . | . . . . . Searches Triggered . | . . . . . Construction Impeded 1 | . . . . 1 Haulers Reinforced . | . . . . . Active Scanning Responses . | . . . . . Cargo Convoy Interrupts . | . . . . . Stealth | -11 -10 -9 -9 -8 --------- Run | Yrd Mat Mat Min Mat Distress Signals 2 | . . . . 2 Communications Jammed . | . . . . . Distress Signals . | . . . . . Times Spotted 37 | . 4 8 13 12 Peak Tracking Total 8 | . 3 4 8 8 Tactical Retreats 2 | . 1 . . 1 Traps | -11 -10 -9 -9 -8 ------- Run | Yrd Mat Mat Min Mat Traps Triggered 1 | . 1 . . . Indirectly . | . . . . . Trap Hack Attempts . | . . . . . Triggered . | . . . . . Disarmed . | . . . . . Reprogrammed . | . . . . . Reused . | . . . . . Traps Extracted . | . . . . . Installed . | . . . . . Triggered . | . . . . . Machines | -11 -10 -9 -9 -8 ---------- Run | Yrd Mat Mat Min Mat Machines Disabled 4 | . . 2 . 2 Max in Single Turn 2 | . . 1 . 2 Machines Repaired . | . . . . . Machines Dismantled . | . . . . . Machines Sabotaged . | . . . . . Overloaded Fab Kills . | . . . . . Hacking | -11 -10 -9 -9 -8 --------- Run | Yrd Mat Mat Min Mat Machines Accessed 7 | . 3 3 . 1 Terminals 7 | . 3 3 . 1 Fabricators . | . . . . . Repair Stations . | . . . . . Recycling Units . | . . . . . Scanalyzers . | . . . . . Garrison Access . | . . . . . Total Hacks 20 | . 5 13 . 2 Successful 8 | . . 7 . 1 Failed 12 | . 5 6 . 1 Catastrophic 4 | . 3 1 . . Database Lockouts . | . . . . . Manual 14 | . 5 9 . . Terminals 20 | . 5 13 . 2 Fabricators . | . . . . . Repair Stations . | . . . . . Recycling Units . | . . . . . Scanalyzers . | . . . . . Garrison Access . | . . . . . Terminal Hacks 8 | . . 7 . 1 Prototype ID Bank 2 | . . 2 . . Unreport Threat 2 | . . 1 . 1 Hauler Manifests 1 | . . 1 . . Registered Components 1 | . . 1 . . Zone Layout 2 | . . 2 . . Fabricator Hacks . | . . . . . Repair Station Hacks . | . . . . . Recycling Unit Hacks . | . . . . . Scanalyzer . | . . . . . Garrison Access Hacks . | . . . . . Unauthorized Hacks . | . . . . . Terminals . | . . . . . Fabricators . | . . . . . Repair Stations . | . . . . . Recycling Units . | . . . . . Scanalyzers . | . . . . . Garrison Access . | . . . . . Data Cores Recovered . | . . . . . Used . | . . . . . Hacking Detections 6 | . 3 2 . 1 Full Trace Events . | . . . . . Feedback Events . | . . . . . Feedback Blocked . | . . . . . Robot Schematics Acquired . | . . . . . Robots Built . | . . . . . Authchips . | . . . . . Time . | . . . . . Total Robot Build Rating . | . . . . . Part Schematics Acquired . | . . . . . Parts Built . | . . . . . Authchips . | . . . . . Time . | . . . . . Total Part Build Rating . | . . . . . Parts Repaired . | . . . . . Time . | . . . . . Parts Recycled . | . . . . . Recycled Matter . | . . . . . Retrieved Matter . | . . . . . Retrieved Components . | . . . . . Parts Scanalyzed . | . . . . . Part Schematics Acquired . | . . . . . Parts Damaged . | . . . . . Bothacking | -11 -10 -9 -9 -8 ------------ Run | Yrd Mat Mat Min Mat Used RIF Installer . | . . . . . Robots Hacked . | . . . . . Non-combat . | . . . . . Combat . | . . . . . Robot Hacks Applied . | . . . . . Relay Couplers Released . | . . . . . Fabnet Peak Effective % . | . . . . . Robots Rewired . | . . . . . Allies Hacked . | . . . . . Hacks Repelled . | . . . . . Allies | -11 -10 -9 -9 -8 -------- Run | Yrd Mat Mat Min Mat Total Allies 1 | . . . 1 . Largest Group 1 | . . . . 1 Highest-Rated Group 31 | . . . . 31 Highest-Rated Ally 31 | . . . . 31 Total Orders . | . . . . . Ally Attacks 11 | . . . . 11 Total Damage 171 | . . . . 171 Kills . | . . . . . Allies Corrupted . | . . . . . Allies Melted 1 | . . . . 1 Intel | -11 -10 -9 -9 -8 ------- Run | Yrd Mat Mat Min Mat Robot Analysis Total . | . . . . . Derelict Logs Recovered . | . . . . . Drone Launches . | . . . . . Drone Recoveries . | . . . . . Exploration | -11 -10 -9 -9 -8 ------------- Run | Yrd Mat Mat Min Mat Turns Passed 1297 | 33 168 352 594 150 Spaces Moved 669 | 24 79 174 323 69 Core 10 | 10 . . . . Treads 305 | . . 38 267 . Legs 354 | 14 79 136 56 69 Wheels . | . . . . . Hover . | . . . . . Flight . | . . . . . Fastest Speed 50 | 50 120 120 120 120 Average Speed 143 | 90 120 137 154 149 Slowest Speed 240 | 120 120 190 240 190 Overloaded Moves . | . . . . . Propulsion Burnouts . | . . . . . Robots Hopped . | . . . . . Cave-ins Triggered . | . . . . . Exploration Rate (%) 22 | 3 18 19 59 11 Regions Visited 4 Branch Regions 1 Pre-discovered Areas . | . . . . . Known Exits Taken . | . . . . . Unknown Exits Taken 4 | 1 1 1 1 . Scrap Searched 1 | . . . 1 . Spaces Dug . | . . . . . Terrain Destroyed 33 | . . . 3 30 Melee . | . . . . . Projectile . | . . . . . AOE 33 | . . . 3 30 Terrain Rammed . | . . . . . Walls Destroyed . | . . . . . Machines Disabled . | . . . . . Actions | -11 -10 -9 -9 -8 --------- Run | Yrd Mat Mat Min Mat Total 896 | 34 142 254 373 93 Wait 92 | . 48 34 7 3 Move 665 | 23 78 173 322 69 Hop . | . . . . . Pick Up 31 | 5 8 9 6 3 Fast Attach 5 | 2 1 1 . 1 Attach 16 | 4 1 3 7 1 Detach . | . . . . . Swap 10 | . . 4 4 2 Drop 11 | . 1 7 1 2 Fire 66 | . 5 23 26 12 Melee . | . . . . . Ram . | . . . . . Kick . | . . . . . Crush . | . . . . . Escape Stasis . | . . . . . Rewire . | . . . . . Trap . | . . . . . Miscellaneous . | . . . . . Route ------- -11/Scrapyard -10/Materials -9/Materials -9/Mines (discovered 2 exits: *Mat x2) -8/Materials History --------- Turn | Location | Event 20 | -11/Scrapyard | Discovered new exit (range 12) 34 | -11/Scrapyard | Entered Materials 171 | -10/Materials | Discovered new exit (range 4) 202 | -10/Materials | Entered another Materials area 202 | -9/Materials | Evolved 2 slots: Propulsion x2 310 | -9/Materials | Build established: Mutant 510 | -9/Materials | Discovered new exit (range 16) 554 | -9/Materials | Entered Mines 684 | -9/Mines | Found a hidden stash of uninstalled traps 750 | -9/Mines | Assembled infested the area 755 | -9/Mines | Assisted by a Guerilla fighting off Assembled 833 | -9/Mines | Destroyed 7 combat bots 835 | -9/Mines | Discovered new exit (range 16) 836 | -9/Mines | Lost 5 parts (2p1n1u1w) 1142 | -9/Mines | Discovered new exit (range 5) 1145 | -9/Mines | Received a Mining Laser from a helpful Derelict 1148 | -9/Mines | Entered Materials 1148 | -8/Materials | Accompanied by 1 ally 1148 | -8/Materials | Evolved 2 slots: Utility x2 1298 | -8/Materials | Self-destructed Last Messages --------------- 01280_ Destroyed Lgt. Nuclear Core. 01283_ Neutrino Reactor explodes. 01283_ U-05 Engineer builds a Wall. 01284_ Penetrated by Slug. 01286_ R-06 Scavenger destroyed. 01287_ ALERT: Construction progress impeded, dispatching reinforcements to local area. 01287_ Aluminum Leg destroyed. 01289_ Destroyed Lgt. Nuclear Core. 01290_ Penetrated by Slug. 01290_ Lgt. Ion Engine destroyed. 01291_ M-13 Machinist repairs G-47 Trooper. 01291_ Critical hit (Burn: +37). 01291_ G-47 Trooper misfires. 01293_ Penetrated by Slug. 01294_ Critical hit (Burn: +37). 01295_ G-47 Trooper destroyed. 01295_ Grenade Launcher destroyed. 01296_ Aluminum Leg destroyed. 01297_ M-13 Machinist repairs H-55 Commando. Map ----- +----------------------------------------------------+ | ?????????????????????????????????????????????????? | | ?????????????????????????????????????????????????? | | ?????????????????????????????????????????????????? | | ?????????????????????????????????????????????????? | | ?????????????????????????????????????????????????? | | ?????????????????????????????????????????????????? | | ?????????????????????????????????????????????????? | | ?????????????????????????????????????????????????? | | ?????????????????????????????????????????????????? | | ?????????????????????????????????????????????????? | | ????????????????????????? ???????????????????????? | | ????????????????????????? ???????????????????????? | | ????????????????????????? ???????????????????????? | | ?????????????????????????w???????????????????????? | | ?????????????????????####/#####??????????????????? | | ?????????????????????# #??????????????????? | | ????????????# ???????# r #??????????????????? | | ????????????#"%??????# m!!r #?###??????????????? | | ????????????# ??????# !! # ???????????????? | | ????????????# ?????# !! # "????????????????? | | ????????????? ?????# a ?????????????????? | | ???????????##? ###### #??????????????????? | | ??????????? ## ???????????????????? | | ?????????? g ## ????????????????????? | | ?????????? g g ####??????????????????? | | ???????????????# %! @ #??????????????????? | | ???????????????# m g #??????????????????? | | ???????????????# h % #??????????????????? | | ??????########### % % #??????????????????? | | ??????# g #??????????????????? | | ??????# """ """ #??????????????????? | | ??????# """ """ #??????????????????? | | ??????# """ """ #??????????????????? | | ??????# #######??????????????????? | | ??????# # #########???????????????????? | | ??????# # ### #???????????????????? | | ??????# !# #???????????????????? | | ??????########### T #???????????????????? | | ????????????????# #???????????????????? | | ????????????????######## #???????????????????? | | ???????????????????????## ##???????????????????? | | ????????????????????????# #????????????????????? | | ????????????????????????# #????????????????????? | | ????????????????????????# #????????????????????? | | ????????????????????????# #????????????????????? | | ???????????????########## #######??????????????? | | ???????????????# # # """""?????????????? | | ???????????????# # # """"" #??????????? | | ???????????????#""" # # """"" #??????????? | | ???????????????#""" # # #??????????? | +----------------------------------------------------+ Best States ------------- Heat Dissipation 53 Energy Generation 10 Energy Capacity 250 Matter Stores 300 Matter Capacity 300 Sight Range 16 Terrain Scan Density 10 Evasion (%) 55 Recoil Reduction 2 Item Schematics ----------------- None Robot Schematics ------------------ None Fabricated ------------ Nothing Alien Tech Used ----------------- None Achievements -------------- None Challenges ------------ None Game ------ Seed RecyclingSystemCharger Manual? 0 Play Time 00:13:08 Cumulative 134.3 hours Start 2024.04.13 @ 16:00:28 End 2024.04.13 @ 16:11:50 Sessions 1 Manual Loads 0 Difficulty Rogue Special Mode None Game No. 48 Rogue 34 Adventurer 14 Explorer 0 Win Type - Total 10 Types 8/0/0/1/0/0/0/0/1 Lore% 55 Gallery% 69 Achievement% 58 Wizard Run 0 Options --------- Layout 1 ASCII 0 Keyboard 0 Movement Mouse Keybinds 0 Fullscreen 1 Font 20/SmallcapsGlow Map View 50x35 Zoom Use 0% Tactical HUD 1 Map Filters NONE Filters NONE Steam 1 RUN: 1eadb433-d823-4e6e-a5eb-6ac1719665ba